bitfinex-derivatives/quotes_ETHF0:USTF0_20250107
["timestamp","ask_amount","ask_price","bid_price","bid_amount"]
[1736262187994,3.2078,3573.3,3572.3,4.50368281]
[1736262188200,2.8072,3573.0,3572.3,4.50368281]
[1736262188600,3.2078,3572.7,3572.3,4.50368281]
[1736262188795,0.69946,3574.7,3572.3,4.50368281]
[1736262188796,3.2078,3574.1,3572.3,4.50368281]
[1736262188995,3.2078,3574.1,3573.5,4.50368281]
[1736262189201,3.2078,3574.5,3573.5,4.50368281]
[1736262189402,2.8072,3574.2,3573.6,3.20285148]
[1736262189598,2.8072,3574.1,3572.9,7.71148281]
[1736262189907,3.2078,3574.2,3572.9,7.71148281]
[1736262190109,3.2078,3574.2,3573.1,3.2078]
[1736262190399,2.8072,3573.4,3572.9,4.50368281]
[1736262190601,6.015,3573.0,3571.6,7.71148281]
[1736262190802,6.015,3572.6,3571.6,3.2078]
[1736262191001,3.2078,3572.5,3571.6,3.2078]
[1736262191198,3.2078,3572.1,3571.4,2.7316]
[1736262191396,2.8072,3571.6,3571.0,4.50368281]
[1736262191601,4.50368281,3574.3,3569.2,0.70053]
[1736262191602,6.015,3571.1,3569.2,7.71148281]
[1736262191797,2.8072,3570.3,3569.3,0.28]
[1736262192001,2.8072,3569.9,3569.2,3.4319]
[1736262192206,0.7001,3571.5,3569.8,40.8]
[1736262192207,3.2078,3570.0,3569.8,40.8]
[1736262192406,3.08736,3569.9,3569.8,40.8]
[1736262192702,3.2078,3570.0,3569.8,40.8]
[1736262192904,3.2078,3571.4,3569.9,0.05602397]
[1736262193104,3.2078,3571.4,3570.5,4.50368281]
[1736262193314,3.48789,3570.8,3570.0,6.37261205]
[1736262193611,3.2078,3571.0,3570.1,0.05602083]
[1736262193797,3.2078,3570.2,3570.1,0.05602083]
[1736262194103,6.29513,3570.2,3570.1,0.05602083]
[1736262194303,2.5831,3569.3,3567.5,4.50368281]
[1736262194506,2.5831,3568.2,3567.6,0.05606009]
[1736262194702,3.2078,3567.7,3567.6,0.05606009]
[1736262194907,3.2078,3567.8,3567.6,40.85606009]
[1736262195103,3.2078,3567.7,3567.6,40.85606009]
[1736262195708,3.2078,3567.7,3567.6,46.08026009]
[1736262195903,3.2078,3568.1,3567.7,0.28033]
[1736262196106,3.2078,3569.0,3567.8,4.50368281]
[1736262196299,3.2078,3569.0,3567.8,7.72687091]
[1736262196498,5.20386281,3571.1,3567.8,7.72687091]
[1736262196499,3.2078,3569.5,3568.5,4.50368281]
[1736262196705,3.2078,3570.1,3569.1,4.50368281]
[1736262197106,3.2078,3569.5,3568.5,3.2231881]
[1736262197303,5.7909,3569.0,3567.9,12.89868281]
[1736262197510,0.28029,3568.3,3567.9,8.395]
[1736262197807,3.2078,3568.6,3567.6,41.0242]
[1736262198012,5.7909,3569.5,3568.0,3.2481292]
[1736262198314,3.2078,3569.0,3567.9,7.71148281]
[1736262198514,2.5831,3568.8,3567.6,41.0242]
[1736262198704,2.5831,3568.3,3567.6,41.0242]
[1736262198902,2.5831,3568.2,3567.6,0.2242]
[1736262199211,3.2078,3567.8,3567.6,0.2242]
[1736262199510,3.2078,3568.2,3567.6,0.2242]
[1736262199713,2.5831,3568.6,3567.6,0.2242]
[1736262199909,3.2078,3568.4,3567.6,0.2242]
[1736262200110,2.5831,3568.3,3567.6,0.2242]
[1736262200308,3.2078,3567.7,3567.6,0.2242]
[1736262200812,6.07123,3567.7,3567.6,0.2242]
[1736262201014,3.2078,3567.7,3567.6,0.2242]
[1736262201410,3.2078,3568.1,3567.6,5.2242]
[1736262201611,1.39995,3572.1,3568.0,40.8]
[1736262201612,3.2078,3568.5,3568.0,40.8]
[1736262201808,3.2078,3568.1,3568.0,40.8]
[1736262202012,3.2078,3568.7,3568.0,40.8]
[1736262202214,5.7909,3568.2,3568.0,40.8]
[1736262202414,2.8634,3568.1,3568.0,40.8]
[1736262202610,2.5831,3568.1,3567.6,0.2242]
[1736262202813,3.2078,3568.2,3567.6,0.2242]
[1736262203122,3.2078,3568.5,3568.1,40.8]
[1736262203307,5.7909,3568.2,3567.6,0.2242]
[1736262203508,2.5831,3568.2,3567.6,0.2242]
[1736262203817,3.2078,3569.1,3568.1,40.8]
[1736262204013,2.5831,3568.9,3568.1,40.8]
[1736262204213,2.5831,3569.0,3568.1,40.8]
[1736262204409,3.2078,3568.7,3568.1,40.8]
[1736262204616,3.2078,3570.1,3568.5,4.50368281]
[1736262204813,3.2078,3570.1,3569.2,3.2078]
[1736262205014,3.2078,3570.7,3569.1,3.2078]
[1736262205317,3.2078,3570.1,3569.1,7.71148281]
[1736262205519,3.2078,3570.5,3569.5,0.28019]
[1736262205711,3.2078,3570.9,3570.0,0.28015]
[1736262205911,3.2078,3571.0,3569.8,4.50368281]
[1736262206212,2.5831,3569.9,3568.7,0.2808]
[1736262206410,3.2078,3570.0,3568.7,0.2808]
[1736262206720,3.2078,3570.6,3569.9,0.28015]
[1736262206914,3.2078,3570.6,3569.6,3.2078]
[1736262207115,2.5831,3570.5,3569.2,4.50368281]
[1736262207315,3.2078,3570.2,3569.7,40.8]
[1736262207515,3.2078,3570.6,3569.7,40.8]
[1736262208116,3.2078,3570.6,3569.8,3.22336265]
[1736262208317,3.2078,3570.6,3569.7,40.8]
[1736262208518,3.2078,3570.1,3569.7,41.08017]
[1736262208723,2.5831,3570.1,3569.8,2.91403031]
[1736262208922,2.5831,3569.8,3568.0,7.71148281]
[1736262209124,2.5831,3569.6,3568.6,0.28025]
[1736262209324,3.2078,3568.7,3567.9,0.2808]
[1736262209527,5.7909,3569.1,3567.9,0.56111]
[1736262209724,3.2078,3569.5,3568.6,0.28025]
[1736262209919,3.2078,3569.5,3568.4,3.2078]
[1736262210121,3.2078,3569.7,3568.8,0.28024]
[1736262210325,5.7909,3569.7,3568.9,40.8]
[1736262210723,3.2078,3569.1,3568.9,40.8]
[1736262211027,0.28024,3568.9,3567.9,0.2808]
[1736262211223,3.2078,3568.3,3567.9,0.2808]
[1736262211432,3.2078,3568.3,3568.0,40.8]
[1736262211625,3.2078,3568.9,3568.1,0.2808]
[1736262212218,3.2078,3569.3,3568.1,0.2808]
[1736262212417,2.5831,3569.2,3568.1,0.2808]
[1736262212734,3.2078,3568.7,3568.1,0.2808]
[1736262213426,5.7909,3568.2,3568.0,40.8]
[1736262213629,0.28031,3568.0,3567.6,0.2242]
[1736262213928,6.07123,3567.7,3567.6,0.2242]
[1736262214423,3.2078,3567.7,3567.6,0.2242]
[1736262214724,3.2078,3568.4,3567.6,5.50454]
[1736262214927,3.2078,3568.5,3568.3,40.8]
[1736262215128,2.5831,3567.7,3567.6,3.16782539]
[1736262215422,2.86343,3567.7,3567.6,0.2242]
[1736262215623,2.86343,3567.7,3565.2,0.19883171]
[1736262215624,2.5831,3567.7,3566.5,40.8]
[1736262215829,0.28042,3566.6,3566.5,40.8]
[1736262216022,2.86352,3566.6,3566.5,40.8]
[1736262216224,2.5831,3566.6,3566.5,40.8]
[1736262216424,3.2078,3566.9,3566.5,40.8]
[1736262216824,2.519,3566.6,3566.5,40.8]
[1736262217126,2.79942,3566.6,3566.5,40.8]
[1736262217523,2.79942,3566.6,3563.9,9.10657]
[1736262217524,0.28048,3565.8,3564.7,3.76916]
[1736262217728,5.7268,3565.5,3564.7,0.2808]
[1736262217926,3.2078,3565.0,3564.4,0.2808]
[1736262218323,3.2078,3565.0,3564.1,0.56141]
[1736262218522,3.2078,3565.0,3564.1,0.2808]
[1736262218523,0.28055,3564.9,3564.1,0.2808]
[1736262218722,3.48841,3564.2,3564.1,0.20078064]
[1736262218936,5.7268,3564.2,3563.0,0.2807]
[1736262219128,5.7268,3564.0,3562.9,0.2808]
[1736262219329,5.7268,3563.6,3562.9,0.20274988]
[1736262219527,5.7268,3564.1,3562.7,0.2808]
[1736262219731,3.2078,3564.6,3563.3,3.2078]
[1736262219922,3.2078,3565.6,3564.1,4.50368281]
[1736262220125,5.7268,3566.0,3565.3,0.28051]
[1736262220425,3.2078,3565.4,3564.8,3.2078]
[1736262220622,0.70089,3567.4,3564.8,3.2078]
[1736262220623,3.2078,3566.2,3564.8,3.4886]
[1736262220823,3.2078,3566.6,3565.6,0.28049]
[1736262221025,2.519,3566.5,3565.2,3.2078]
[1736262221225,2.519,3566.5,3565.7,0.28049]
[1736262221431,3.2078,3566.6,3566.0,0.28046]
[1736262221634,3.2078,3566.6,3566.4,40.8]
[1736262221829,3.2078,3567.8,3566.5,7.71148281]
[1736262222019,3.2078,3567.8,3567.1,4.50368281]
[1736262222225,3.2078,3567.9,3567.1,4.50368281]
[1736262222428,3.48814,3567.6,3566.6,8.6898]
[1736262222629,5.7268,3566.7,3566.6,0.2808]
[1736262222928,5.7268,3566.7,3566.4,40.8]
[1736262222929,0.28042,3566.5,3566.4,40.8]
[1736262223132,2.79942,3566.5,3566.4,40.8]
[1736262223526,3.2078,3566.7,3566.4,40.8]
[1736262223727,3.2078,3567.2,3566.4,45.8]
[1736262223932,3.2078,3567.2,3566.4,40.8]
[1736262224135,0.28038,3567.1,3566.4,40.8]
[1736262224335,2.519,3567.0,3566.4,40.8]
[1736262224531,3.2078,3567.2,3566.4,41.08043]
[1736262224733,2.519,3566.8,3566.4,40.8]
[1736262224936,3.2078,3566.8,3566.4,40.8]
[1736262225136,3.2078,3567.5,3566.4,46.08043]
[1736262225434,2.79935,3567.4,3566.4,40.8]
[1736262225638,2.519,3567.0,3566.4,40.8]
[1736262225841,3.2078,3566.5,3566.4,40.8]
[1736262226139,3.2078,3567.1,3566.4,40.8]
[1736262226333,3.2078,3567.5,3566.4,40.94]
[1736262226538,3.2078,3567.5,3567.0,0.28038]
[1736262226836,2.519,3566.8,3565.5,3.2078]
[1736262227039,3.2078,3566.7,3566.5,40.8]
[1736262227535,2.519,3566.6,3566.5,40.8]
[1736262227737,2.79942,3566.6,3566.5,40.8]
[1736262227929,2.519,3566.6,3565.2,0.2808]
[1736262228241,3.2078,3565.5,3565.0,0.2808]
[1736262228433,0.28053,3565.1,3564.1,4.50368281]
[1736262228636,0.28058,3564.6,3563.8,0.2808]
[1736262228838,3.2078,3564.6,3563.9,0.2808]
[1736262229135,0.28057,3564.6,3564.5,40.8]
[1736262229340,6.00737,3564.6,3564.5,40.8]
[1736262229535,0.28065,3563.7,3562.6,0.28073]
[1736262229742,5.7268,3563.8,3562.9,0.2808]
[1736262229938,2.519,3563.6,3562.9,0.2808]
[1736262230137,3.2078,3563.8,3562.9,0.2808]
[1736262230437,5.7268,3563.0,3561.7,8.409]
[1736262230645,3.2078,3562.6,3561.8,0.2808]
[1736262231040,3.2078,3563.6,3562.7,0.28072]
[1736262231236,3.2078,3563.6,3562.5,44.0078]
[1736262231537,4.50368281,3565.4,3562.5,44.0078]
[1736262231538,0.28064,3563.8,3562.8,3.11553437]
[1736262231841,3.2078,3563.6,3562.6,3.2078]
[1736262232142,3.2078,3563.6,3563.5,0.28065]
[1736262232337,3.2078,3563.6,3562.9,3.11553437]
[1736262232338,3.2078,3564.5,3563.2,3.2078]
[1736262232838,3.2078,3564.5,3564.4,40.8]
[1736262233143,3.2078,3565.1,3564.4,40.8]
[1736262233334,3.2078,3565.5,3564.8,0.28055]
[1736262233535,2.519,3565.8,3564.5,4.78448281]
[1736262233736,2.519,3565.9,3564.5,4.90448281]
[1736262234035,5.7268,3565.4,3564.6,2.98324972]
[1736262234233,2.519,3565.8,3564.5,0.2808]
[1736262234629,3.2078,3565.5,3564.6,0.2808]
[1736262234836,2.519,3565.4,3564.6,0.56137]
[1736262235035,5.7268,3565.5,3564.6,0.2808]
[1736262235347,3.2078,3565.5,3564.6,0.2808]
[1736262235541,3.2078,3565.5,3565.0,0.28054]
[1736262235842,3.2078,3566.0,3565.1,0.28053]
[1736262236040,3.2078,3566.0,3565.0,0.28054]
[1736262236235,3.2078,3566.0,3564.7,6.34813642]
[1736262236437,2.519,3565.9,3564.6,0.2808]
[1736262236637,2.519,3565.9,3564.6,3.4886]
[1736262236837,3.2078,3566.8,3565.6,0.70124]
[1736262237140,3.2078,3567.9,3566.4,4.51378473]
[1736262237442,3.2078,3568.4,3567.9,0.28031]
[1736262237632,2.519,3568.6,3567.2,3.2078]
[1736262237832,2.519,3568.3,3567.2,3.2078]
[1736262238038,3.2078,3569.5,3567.9,3.2078]
[1736262238238,2.519,3569.9,3569.4,40.8]
[1736262238440,3.2078,3570.1,3569.5,3.2078]
[1736262238635,3.2078,3571.3,3569.5,3.2078]
[1736262238837,2.519,3570.7,3569.6,3.22724556]
[1736262239141,3.2078,3570.6,3569.8,3.2078]
[1736262239341,2.519,3570.2,3569.6,0.2808]
[1736262239547,5.7268,3569.7,3569.4,40.8]
[1736262239842,5.7268,3569.7,3569.4,41.08019]
[1736262239843,3.2078,3569.7,3569.4,41.08019]
[1736262240044,2.519,3569.6,3569.4,40.8]
[1736262240244,3.2078,3569.7,3569.4,40.8]
[1736262240441,2.519,3569.5,3569.4,40.8]
[1736262240645,2.519,3569.5,3568.5,0.2808]
[1736262240852,2.519,3568.5,3567.7,8.6908]
[1736262241140,4.51378473,3569.8,3567.3,2.558]
[1736262241141,2.519,3568.2,3567.3,2.558]
[1736262241341,3.2078,3568.3,3567.3,2.558]
[1736262241540,2.519,3567.8,3567.3,2.558]
[1736262241744,5.7268,3567.9,3566.9,0.2808]
[1736262241950,2.09557837,3568.1,3566.9,3.2078]
[1736262242150,7.82237837,3568.1,3567.2,3.18805763]
[1736262242440,7.82237837,3568.1,3567.0,3.46885763]
[1736262242441,2.09557837,3568.1,3568.0,0.28031]
[1736262242845,1.06936757,3568.4,3568.3,0.28028]
[1736262243047,4.27716757,3569.4,3568.2,0.28029]
[1736262243239,4.27716757,3569.4,3567.1,2.6417]
[1736262243240,3.2078,3568.3,3567.1,2.6417]
[1736262243439,3.2078,3568.3,3567.5,3.2078]
[1736262243635,4.27716757,3569.4,3568.0,3.2078]
[1736262243846,4.27716757,3569.4,3568.8,0.28024]
[1736262244046,5.7268,3569.4,3568.3,0.28028]
[1736262244241,3.2078,3568.7,3568.2,40.8]
[1736262244443,5.7268,3569.6,3568.2,40.8]
[1736262244639,3.2078,3569.1,3568.3,3.1800511]
[1736262244850,3.2078,3569.1,3568.4,0.28027]
[1736262245042,3.2078,3569.1,3568.2,40.8]
[1736262245241,3.2078,3569.5,3568.8,0.28024]
[1736262245440,3.2078,3569.6,3568.6,0.28025]
[1736262245642,3.2078,3569.6,3568.4,3.2078]
[1736262245643,2.519,3569.0,3568.4,3.2078]
[1736262245945,2.519,3569.1,3568.2,49.209]
[1736262246140,3.2078,3569.2,3568.2,49.209]
[1736262246344,3.2078,3569.2,3568.2,40.8]
[1736262246549,2.519,3569.0,3568.3,3.07356464]
[1736262246750,2.519,3568.6,3567.7,8.408]
[1736262246945,5.7268,3568.7,3567.7,8.408]
[1736262247247,2.519,3568.2,3567.8,40.8]
[1736262247448,0.28031,3567.9,3567.8,40.8]
[1736262247645,2.519,3567.9,3566.7,0.2808]
[1736262247844,5.7268,3567.5,3566.7,0.2808]
[1736262248147,1.40102,3569.4,3566.7,0.2808]
[1736262248148,5.7268,3567.9,3567.1,0.28037]
[1736262248344,2.519,3567.4,3566.7,0.2808]
[1736262248539,3.2078,3567.5,3566.5,0.2808]
[1736262248741,2.519,3566.8,3566.3,8.408]
[1736262248957,2.519,3566.8,3565.3,5.4336]
[1736262248958,2.79944,3566.4,3565.6,0.2808]
[1736262249144,3.2078,3566.5,3565.6,0.2808]
[1736262249344,2.519,3566.4,3565.6,0.2808]
[1736262249650,3.2078,3565.7,3565.3,0.2808]
[1736262249855,2.519,3566.0,3565.3,0.2808]
[1736262250154,3.2078,3565.6,3565.3,0.2808]
[1736262250355,2.519,3565.4,3564.0,0.2808]
[1736262250655,2.519,3565.4,3563.1,8.408]
[1736262250656,0.28061,3564.1,3563.4,0.2808]
[1736262250851,2.79963,3564.0,3563.1,8.408]
[1736262251155,3.2078,3564.2,3563.9,40.8]
[1736262251451,3.2078,3565.0,3563.9,40.8]
[1736262251652,2.519,3565.3,3564.3,3.2078]
[1736262251850,5.7268,3564.8,3564.0,2.93366801]
[1736262252048,2.519,3565.1,3564.2,0.2806]
[1736262252345,2.519,3564.9,3563.9,44.28843]
[1736262252548,2.519,3564.9,3564.1,0.28061]
[1736262252747,3.2078,3565.3,3564.1,8.2578]
[1736262252950,3.2078,3565.8,3564.7,3.2078]
[1736262253144,3.2078,3566.2,3564.7,3.2078]
[1736262253347,2.519,3564.8,3564.2,0.2808]
[1736262253543,2.79957,3564.6,3563.9,40.8]
[1736262253743,2.519,3564.8,3563.9,40.8]
[1736262253948,2.519,3564.8,3564.0,0.28062]
[1736262254157,2.519,3564.4,3563.9,40.8]
[1736262254454,2.519,3564.2,3563.9,40.8]
[1736262254644,2.519,3564.3,3563.9,40.8]
[1736262254846,2.519,3564.6,3564.0,0.56142]
[1736262255057,3.2078,3565.1,3564.0,3.4886]
[1736262255243,2.519,3564.9,3564.2,3.2078]
[1736262255445,2.519,3564.9,3564.3,0.28059]
[1736262255656,2.519,3564.9,3564.0,0.2808]
[1736262255853,2.519,3564.1,3562.9,3.2078]
[1736262256152,3.2078,3564.4,3563.2,0.2808]
[1736262256353,3.2078,3564.8,3563.6,4.51378473]
[1736262256546,2.519,3565.0,3564.5,0.28057]
[1736262256751,2.519,3564.7,3564.1,0.28061]
[1736262256951,2.519,3565.0,3564.5,0.28058]
[1736262257146,2.519,3564.3,3564.2,2.96764158]
[1736262257353,3.2078,3564.5,3563.3,40.8]
[1736262257546,5.7268,3563.4,3563.3,40.8]
[1736262257751,5.7268,3563.4,3561.5,2.643]
[1736262257954,2.519,3562.5,3561.6,0.05156404]
[1736262258157,2.519,3561.6,3561.2,40.8]
[1736262258456,2.519,3561.6,3560.4,0.2809]
[1736262258457,5.7268,3561.3,3560.4,0.2808]
[1736262258652,2.519,3560.5,3559.5,0.2808]
[1736262258853,2.519,3560.0,3559.5,0.2808]
[1736262259250,3.2078,3561.4,3559.6,48.14859327]
[1736262259452,2.519,3562.1,3560.5,3.2078]
[1736262259664,4.851,3565.1,3559.6,43.72480854]
[1736262259665,2.519,3562.6,3561.4,4.51378473]
[1736262259960,3.88972593,3562.5,3562.4,0.28075]
[1736262260258,8.38231349,3563.5,3562.5,3.07557931]
[1736262260558,3.2078,3563.7,3562.3,3.24068807]
[1736262260856,3.2078,3563.3,3562.0,4.51378473]
[1736262261046,3.2078,3563.3,3561.8,3.2078]
[1736262261047,2.519,3563.0,3561.8,3.2078]
[1736262261247,3.2078,3562.9,3561.5,0.2808]
[1736262261452,2.519,3562.7,3561.8,3.24068807]
[1736262261654,3.2078,3562.5,3561.6,3.24068807]
[1736262261855,5.7268,3561.7,3560.6,0.56169]
[1736262262158,8.415,3564.9,3559.9,8.415]
[1736262262159,2.519,3560.7,3559.9,8.415]
[1736262262359,3.2078,3560.2,3559.7,0.28096]
[1736262262658,3.2078,3559.8,3559.7,0.3371345]
[1736262262859,2.519,3560.1,3559.3,0.2808]
[1736262263255,2.519,3560.1,3560.0,0.28094]
[1736262263462,3.2078,3560.8,3560.5,0.2809]
[1736262263763,3.2078,3560.8,3560.7,0.28088]
[1736262263969,4.17996402,3562.8,3560.7,0.28088]
[1736262264152,2.519,3561.7,3560.3,0.98319]
[1736262264362,2.519,3561.7,3561.4,0.28082]
[1736262264659,3.2078,3562.7,3561.0,3.2078]
[1736262264957,5.7268,3562.7,3561.7,3.2078]
[1736262265159,2.519,3562.0,3561.2,0.28084]
[1736262265465,3.2078,3562.0,3561.1,0.2808]
[1736262265763,2.519,3561.9,3561.6,0.28081]
[1736262265964,2.519,3561.9,3561.1,0.2808]
[1736262265965,2.519,3561.9,3561.3,0.28083]
[1736262266263,5.7268,3561.5,3560.7,3.4886]
[1736262266463,2.519,3561.4,3560.7,0.56168]
[1736262266662,2.519,3560.8,3559.9,0.2816]
[1736262266863,3.2078,3560.4,3560.0,0.56253]
[1736262267057,3.2078,3560.4,3560.0,0.2816]
[1736262267557,3.2078,3560.9,3560.3,41.08091]
[1736262267767,2.519,3560.8,3560.3,41.08091]
[1736262267956,2.519,3560.8,3560.3,40.8]
[1736262268264,3.2078,3561.0,3560.3,40.8]
[1736262268459,2.519,3560.9,3560.3,40.8]
[1736262268765,2.519,3560.9,3560.6,0.28088]
[1736262269064,3.2078,3561.4,3561.3,0.28083]
[1736262269264,3.2078,3562.0,3561.2,3.2078]
[1736262269457,3.2078,3562.6,3561.3,2.99392673]
[1736262269653,3.2078,3562.6,3562.5,40.8]
[1736262269859,5.7268,3562.6,3562.5,40.8]
[1736262270566,5.7268,3562.6,3560.9,8.419]
[1736262270760,2.519,3561.9,3560.9,8.419]
[1736262270960,2.519,3561.7,3560.9,8.419]
[1736262271164,2.519,3561.9,3561.4,0.28082]
[1736262271468,3.2078,3562.2,3561.8,40.8]
[1736262271660,3.2078,3562.6,3561.8,40.8]
[1736262271866,2.519,3562.5,3562.3,0.28075]
[1736262272063,3.2078,3562.6,3562.5,0.28074]
[1736262272259,3.2078,3563.0,3562.8,0.28071]
[1736262272459,3.2078,3563.4,3562.5,0.5]
[1736262272764,3.2078,3563.9,3563.8,0.28064]
[1736262272966,3.2078,3564.6,3563.4,3.2078]
[1736262273263,2.519,3564.4,3563.3,3.0450889]
[1736262273458,5.7268,3564.6,3564.2,0.2806]
[1736262273658,3.2078,3564.3,3564.2,0.2806]
[1736262273861,0.28063,3563.9,3563.2,8.42]
[1736262274167,4.51378473,3565.1,3563.2,8.42]
[1736262274168,2.519,3563.8,3563.2,8.42]
[1736262274366,3.2078,3563.4,3563.2,8.42]
[1736262274665,3.2078,3563.9,3563.3,0.28068]
[1736262274967,2.519,3563.3,3563.2,8.42]
[1736262275365,3.2078,3563.5,3563.2,8.42]
[1736262275571,5.7268,3563.5,3563.2,8.42]
[1736262275863,2.519,3563.4,3563.2,8.42]
[1736262276170,5.7268,3563.5,3563.2,8.42]
[1736262276472,2.519,3563.7,3563.2,8.42]
[1736262276662,2.519,3563.7,3563.2,2.80696327]
[1736262276963,5.7268,3563.5,3563.2,2.52628327]
[1736262277164,5.7268,3563.5,3562.5,0.5]
[1736262277165,2.519,3563.3,3562.5,0.5]
[1736262277356,2.519,3562.7,3562.6,40.8]
[1736262277560,2.519,3562.6,3562.5,0.5]
[1736262278061,2.519,3562.6,3562.5,41.3]
[1736262278264,3.2078,3562.8,3562.5,41.3]
[1736262278566,4.51378473,3564.5,3562.6,0.28073]
[1736262278567,3.2078,3563.2,3562.6,0.28073]
[1736262278869,2.519,3563.1,3562.5,41.58073]
[1736262279163,3.2078,3562.7,3562.5,41.3]
[1736262279565,2.519,3562.6,3562.5,0.5]
[1736262279764,2.519,3562.6,3561.6,8.42]
[1736262280067,2.519,3562.6,3560.9,0.2808]
[1736262280068,2.519,3561.7,3560.9,0.2808]
[1736262280265,2.519,3561.4,3560.3,3.4886]
[1736262280569,0.70184,3562.6,3560.3,3.4886]
[1736262280570,2.519,3561.1,3561.0,40.8]
[1736262280869,2.519,3560.4,3559.9,0.2808]
[1736262281067,2.519,3560.3,3559.9,0.2808]
[1736262281872,3.2078,3560.4,3560.3,0.28091]
[1736262282067,3.2078,3561.0,3560.2,0.28092]
[1736262282260,0.28083,3561.4,3560.6,3.2078]
[1736262282261,3.2078,3561.4,3560.6,3.2078]
[1736262282460,2.519,3561.2,3560.4,0.2809]
[1736262282773,2.519,3560.6,3559.7,0.17059133]
[1736262282964,2.519,3560.7,3559.7,0.17059133]
[1736262283169,2.519,3560.6,3559.8,0.28095]
[1736262283365,0.702,3561.8,3559.7,0.17059133]
[1736262283671,3.2078,3560.2,3559.7,0.17059133]
[1736262283971,3.2078,3559.8,3559.1,0.2816]
[1736262285271,5.7268,3559.2,3558.5,0.56265]
[1736262285462,4.51378473,3560.7,3557.2,7.72158473]
[1736262285463,2.519,3558.9,3557.2,7.72158473]
[1736262285663,1.40441,3560.8,3558.2,0.2816]
[1736262285664,3.2078,3558.6,3558.2,0.2816]
[1736262286267,2.519,3558.3,3557.2,3.2078]
[1736262286466,3.2078,3558.6,3558.2,0.28108]
[1736262286666,3.2078,3558.6,3558.1,0.2816]
[1736262286967,3.2078,3559.8,3558.4,4.51378473]
[1736262287171,2.519,3560.2,3558.4,4.73378473]
[1736262287362,3.2078,3559.6,3559.4,0.28098]
[1736262287562,3.2078,3559.6,3559.5,0.28098]
[1736262287862,7.29798473,3561.3,3559.5,40.8]
[1736262287863,3.2078,3559.8,3559.5,40.8]
[1736262288459,7.29798473,3561.3,3559.5,40.8]
[1736262288460,3.2078,3560.2,3559.5,40.8]
[1736262288666,2.519,3560.1,3559.5,40.8]
[1736262288867,2.519,3560.1,3559.6,0.28096]
[1736262289067,2.519,3560.1,3559.5,40.8]
[1736262289275,3.2078,3559.8,3559.5,40.8]
[1736262289471,2.519,3560.0,3559.5,40.8]
[1736262289679,3.2078,3560.1,3559.6,0.28097]
[1736262289975,5.7268,3560.1,3559.5,40.8]
[1736262290274,3.2078,3560.1,3559.5,40.8]
[1736262290475,2.519,3559.9,3559.5,40.8]
[1736262290669,5.7268,3560.1,3559.6,0.28097]
[1736262290975,3.2078,3560.2,3559.5,40.8]
[1736262291272,2.519,3560.1,3559.5,40.8]
[1736262291468,3.2078,3561.4,3559.7,3.2078]
[1736262291673,6.77297518,3563.1,3560.4,3.2078]
[1736262291674,2.519,3561.7,3560.4,3.2078]
[1736262291868,9.87907518,3562.8,3562.2,0.28076]
[1736262292066,9.87907518,3562.8,3561.4,4.51378473]
[1736262292067,2.519,3562.6,3561.4,4.51378473]
[1736262292263,2.519,3562.4,3561.2,3.2078]
[1736262292468,3.2078,3562.4,3562.3,40.8]
[1736262292668,3.2078,3562.4,3562.3,41.08075]
[1736262292873,3.2078,3563.1,3562.5,0.28073]
[1736262293077,2.519,3563.0,3562.3,40.8]
[1736262293276,2.519,3563.0,3562.5,0.28073]
[1736262293470,2.519,3563.0,3562.3,40.8]
[1736262293665,2.519,3563.0,3562.5,0.28074]
[1736262293868,0.70146,3564.6,3562.3,40.8]
[1736262293869,3.2078,3563.8,3563.0,0.2807]
[1736262294183,5.7268,3564.3,3564.0,0.28061]
[1736262294377,4.15227518,3565.3,3563.1,3.16898966]
[1736262294378,2.519,3564.4,3563.1,3.16898966]
[1736262294676,2.519,3564.4,3564.2,40.8]
[1736262295069,3.2078,3564.5,3564.2,40.8]
[1736262295270,2.519,3564.3,3564.2,40.8]
[1736262295465,3.2078,3564.5,3562.6,0.2808]
[1736262295672,2.519,3563.8,3562.6,0.2808]
[1736262295872,2.519,3563.5,3562.6,3.30061583]
[1736262296079,2.519,3563.5,3562.9,3.2078]
[1736262296266,4.51378473,3565.4,3562.6,0.2808]
[1736262296267,2.519,3563.0,3562.6,0.2808]
[1736262296575,5.7268,3562.7,3562.1,0.2808]
[1736262296771,5.7268,3562.7,3561.2,3.2078]
[1736262296772,2.519,3562.4,3561.9,0.28079]
[1736262296973,2.519,3562.4,3560.7,12.94598838]
[1736262296974,3.2078,3562.2,3562.0,40.8]
[1736262297473,2.519,3562.1,3562.0,40.8]
[1736262297876,2.519,3562.1,3561.3,0.28083]
[1736262297877,2.519,3562.1,3560.7,12.94598838]
[1736262298069,2.519,3561.3,3560.6,0.2808]
[1736262298275,2.519,3560.7,3560.2,0.2808]
[1736262298470,2.519,3560.7,3560.3,0.2808]
[1736262298676,2.519,3560.3,3559.5,8.422]
[1736262298873,2.519,3560.3,3559.6,0.2816]
[1736262299377,2.519,3560.3,3560.1,40.8]